bitfinex-derivatives/quotes_ETHF0:USTF0_20250416
["timestamp","ask_amount","ask_price","bid_price","bid_amount"]
[1744820357968,3.79737,1589.6,1589.5,5.25835]
[1744820358256,3.79737,1589.6,1589.5,4.0]
[1744820358454,7.00517,1589.6,1589.5,4.0]
[1744820361565,7.00517,1589.6,1589.5,5.25835]
[1744820361765,3.79737,1589.6,1589.5,5.25835]
[1744820363363,2.98787,1589.6,1589.5,5.25835]
[1744820363963,2.98787,1589.6,1589.5,4.0]
[1744820364163,2.98787,1589.6,1589.5,5.25835]
[1744820364361,2.98787,1589.6,1589.5,4.0]
[1744820364568,6.19567,1589.6,1589.5,4.0]
[1744820368070,2.98787,1589.6,1589.5,5.25835]
[1744820368272,2.98787,1589.6,1589.5,6.86735]
[1744820368474,1.25827,1589.6,1589.5,6.86735]
[1744820369276,2.90347,1589.6,1589.5,6.86735]
[1744820370680,6.11127,1589.6,1589.5,4.0]
[1744820372086,1.25883,1588.9,1588.8,11.29604545]
[1744820372279,1.25883,1588.9,1588.8,9.65826545]
[1744820372478,1.25883,1588.9,1588.8,8.39935545]
[1744820372781,1.25883,1588.9,1588.8,23.8424903]
[1744820372981,1.25883,1588.9,1588.8,22.5835803]
[1744820373183,1.25883,1588.9,1588.8,20.9811803]
[1744820373482,4.68093,1588.9,1588.8,20.9811803]
[1744820373885,4.68093,1588.9,1588.8,22.2400903]
[1744820374085,4.68093,1588.9,1588.8,20.9811803]
[1744820375385,4.68093,1588.9,1588.8,22.2400903]
[1744820375683,4.47602507,1589.0,1588.8,20.9811803]
[1744820375888,6.12432507,1589.0,1588.9,3.75323]
[1744820376184,6.12432507,1589.0,1588.9,2.4944]
[1744820378786,1.26822507,1589.0,1588.9,3.75323]
[1744820378991,1.26822507,1589.0,1588.9,4.55703]
[1744820379885,1.26822507,1589.0,1588.9,3.2982]
[1744820380389,1.25891,1588.8,1588.7,6.11193]
[1744820380578,1.25891,1588.8,1588.7,7.78703]
[1744820380983,2.97767,1588.9,1588.8,1.25891]
[1744820381291,1.26824507,1589.0,1588.9,1.25883]
[1744820384193,1.26824507,1589.0,1588.9,2.95893]
[1744820384397,0.00942507,1589.0,1588.9,2.95893]
[1744820384897,0.00942507,1589.0,1588.9,7.95893]
[1744820387394,1.25856,1589.3,1589.2,1.25852]
[1744820387601,1.25856,1589.3,1589.2,3.91442]
[1744820389295,2.87836,1589.3,1589.2,3.91442]
[1744820389796,1.26790507,1589.4,1589.3,1.25851]
[1744820389992,1.26790507,1589.4,1589.3,3.03631]
[1744820390198,0.00942507,1589.4,1589.3,3.03631]
[1744820390600,0.00942507,1589.4,1589.3,6.24411]
[1744820390804,0.00942507,1589.4,1589.3,3.03631]
[1744820391005,0.00942507,1589.4,1589.3,11.09711]
[1744820391901,3.2078,1589.8,1589.7,1.25819]
[1744820392104,6.10077,1589.8,1589.7,1.25819]
[1744820393207,6.10077,1589.8,1589.7,2.99039]
[1744820393506,4.8426,1589.8,1589.7,2.99039]
[1744820393703,6.10072,1589.8,1589.7,2.99039]
[1744820394503,4.8426,1589.8,1589.7,2.99039]
[1744820394810,0.00942507,1589.9,1589.8,1.25812]
[1744820395106,1.26746507,1589.9,1589.8,3.01342]
[1744820395604,2.92496507,1589.9,1589.8,1.7553]
[1744820395805,1.25815,1589.8,1589.7,1.25812]
[1744820396008,2.91565,1589.8,1589.7,3.01342]
[1744820396200,1.6575,1589.8,1589.7,3.01342]
[1744820398814,0.00942507,1589.9,1589.8,1.25812]
[1744820399004,0.00942507,1589.9,1589.8,6.20622]
[1744820399204,0.00942507,1589.9,1589.8,47.00622]
[1744820400705,0.00942507,1589.9,1589.8,43.79842]
[1744820400912,1.25812,1589.8,1589.7,7.11414]
[1744820401118,3.75601507,1589.9,1589.8,1.25812]
[1744820401410,1.25812,1589.8,1589.7,8.81143]
[1744820401713,2.08712507,1589.9,1589.8,1.25812]
[1744820401912,0.82902507,1589.9,1589.8,1.25812]
[1744820402112,2.08706507,1589.9,1589.8,2.95542]
[1744820402713,2.08706507,1589.9,1589.8,1.25812]
[1744820402912,0.82902507,1589.9,1589.8,1.25812]
[1744820403211,0.82902507,1589.9,1589.8,2.90282]
[1744820403414,0.00942507,1589.9,1589.8,2.90282]
[1744820406119,1.26746507,1589.9,1589.8,2.90282]
[1744820406717,1.26746507,1589.9,1589.8,1.25812]
[1744820407107,1.25812,1589.8,1589.7,3.78575]
[1744820407307,2.12582,1589.8,1589.7,3.78575]
[1744820407507,2.12582,1589.8,1589.7,1.25815]
[1744820407707,0.8677,1589.8,1589.7,1.25815]
[1744820409011,2.12582,1589.8,1589.7,1.25815]
[1744820411522,0.8677,1589.8,1589.7,1.25815]
[1744820412121,2.12582,1589.8,1589.7,1.25815]
[1744820412815,0.8677,1589.8,1589.7,1.25815]
[1744820413025,2.12582,1589.8,1589.7,1.25815]
[1744820414520,0.8677,1589.8,1589.7,1.25815]
[1744820414725,0.00942507,1589.9,1589.8,1.25812]
[1744820414923,0.00942507,1589.9,1589.8,3.70392]
[1744820415221,1.26746507,1589.9,1589.8,3.70392]
[1744820415724,1.26746507,1589.9,1589.8,1.25812]
[1744820416018,1.25812,1589.8,1589.7,1.25814]
[1744820416226,3.02762,1589.8,1589.7,1.25814]
[1744820417128,1.7695,1589.8,1589.7,1.25814]
[1744820417718,0.00942507,1589.9,1589.8,1.25812]
[1744820417919,0.00942507,1589.9,1589.8,2.90442]
[1744820418821,0.00942507,1589.9,1589.8,16.96822]
[1744820419417,0.00942507,1589.9,1589.8,11.96822]
[1744820419618,0.00942507,1589.9,1589.8,16.96822]
[1744820421226,1.6099,1590.3,1590.2,1.2578]
[1744820421725,1.6718,1590.4,1590.3,1.25772]
[1744820421931,4.66544,1590.4,1590.3,1.25772]
[1744820422925,1.25772,1590.3,1590.2,0.00942507]
[1744820423124,2.99372,1590.3,1590.2,0.00942507]
[1744820423328,6.20152,1590.3,1590.2,0.00942507]
[1744820424928,6.20152,1590.3,1590.2,1.26722507]
[1744820425325,1.736,1590.3,1590.2,1.26722507]
[1744820425825,2.99372,1590.3,1590.2,2.93612507]
[1744820426027,2.99372,1590.3,1590.2,2.09292507]
[1744820426222,2.99372,1590.3,1590.2,1.26722507]
[1744820427134,1.736,1590.3,1590.2,1.26722507]
[1744820428030,1.736,1590.3,1590.2,3.02232507]
[1744820428231,6.20152,1590.3,1590.2,1.26722507]
[1744820429337,4.9438,1590.3,1590.2,1.26722507]
[1744820429546,3.2078,1590.3,1590.2,1.26722507]
[1744820429845,3.2078,1590.3,1590.2,4.74762507]
[1744820430044,4.68766,1590.4,1590.3,1.25772]
[1744820430341,4.68766,1590.4,1590.3,1.7131]
[1744820430541,1.25772,1590.3,1590.2,0.00942507]
[1744820430747,1.25807,1589.9,1589.8,1.25803]
[1744820431046,1.258,1590.0,1589.9,1.25796]
[1744820431443,1.25804,1589.9,1589.8,2.97121]
[1744820431743,1.25797,1590.0,1589.9,1.25796]
[1744820431939,2.95277,1590.0,1589.9,4.64646]
[1744820432951,1.6948,1590.0,1589.9,4.64646]
[1744820433246,3.2078,1590.3,1590.1,3.1447]
[1744820433449,2.96293,1590.3,1590.2,1.2578]
[1744820434053,1.7052,1590.3,1590.2,4.6454]
[1744820434851,2.96292,1590.3,1590.2,4.6454]
[1744820436251,2.96292,1590.3,1590.2,9.4764]
[1744820436442,2.96292,1590.3,1590.2,4.831]
[1744820436644,6.17072,1590.3,1590.2,4.831]
[1744820436845,1.25788,1590.1,1590.0,1.25788]
[1744820437541,3.01038,1590.1,1590.0,1.25788]
[1744820437738,3.01038,1590.1,1590.0,2.87638]
[1744820437739,1.7525,1590.1,1590.0,2.87638]
[1744820437949,3.01038,1590.1,1590.0,2.87638]
[1744820438150,4.72028,1590.1,1590.0,2.87638]
[1744820440352,1.25796,1590.0,1589.9,4.831]
[1744820440553,1.25804,1589.9,1589.8,1.25808]
[1744820441048,2.85964,1589.9,1589.8,1.25808]
[1744820441854,1.25812,1589.8,1589.7,9.46916507]
[1744820442152,2.85972,1589.8,1589.7,9.46916507]
[1744820442351,2.85972,1589.8,1589.7,0.00942507]
[1744820442851,4.53102,1589.8,1589.7,0.00942507]
[1744820444351,1.25827,1589.6,1589.5,8.39935545]
[1744820444553,4.46607,1589.6,1589.5,8.39935545]
[1744820445357,14.29807,1589.6,1589.5,8.38993038]
[1744820445746,16.03997,1589.6,1589.5,8.38993038]
[1744820446448,1.25835,1589.5,1589.4,0.00942507]
[1744820446649,8.87335,1589.5,1589.4,0.00942507]
[1744820447552,3.87335,1589.5,1589.4,0.00942507]
[1744820448555,8.87335,1589.5,1589.4,0.00942507]
[1744820448949,3.87335,1589.5,1589.4,0.00942507]
[1744820451657,3.87335,1589.5,1589.4,1.26785507]
[1744820452048,1.26775507,1589.6,1589.5,1.25835]
[1744820452249,1.26775507,1589.6,1589.5,3.01225]
[1744820453662,0.00942507,1589.6,1589.5,3.01225]
[1744820453862,1.26769507,1589.6,1589.5,3.01225]
[1744820454861,1.26769507,1589.6,1589.5,1.7539]
[1744820455061,2.89509507,1589.6,1589.5,3.01225]
[1744820458162,6.10289507,1589.6,1589.5,1.7539]
[1744820458652,6.10289507,1589.6,1589.4,0.00942507]
[1744820458653,1.25835,1589.5,1589.4,0.00942507]
[1744820458853,3.87685,1589.5,1589.4,0.00942507]
[1744820462666,4.68905,1589.5,1589.4,0.00942507]
[1744820463868,3.00625,1589.5,1589.4,1.26785507]
[1744820464364,3.00625,1589.5,1589.4,2.93705507]
[1744820464764,0.00942507,1589.6,1589.5,1.25835]
[1744820464967,1.26769507,1589.6,1589.5,2.92725]
[1744820465470,0.00942507,1589.6,1589.5,2.92725]
[1744820465866,1.26769507,1589.6,1589.5,2.92725]
[1744820467962,0.00942507,1589.6,1589.5,7.75125]
[1744820468164,1.7208,1590.0,1589.9,1.25804]
[1744820468359,1.25799,1590.0,1589.9,1.25804]
[1744820468874,1.25799,1590.0,1589.9,2.92884]
[1744820469571,0.00942507,1590.1,1590.0,1.25796]
[1744820469770,0.00942507,1590.1,1589.9,2.92877]
[1744820469971,0.00942507,1590.1,1590.0,1.25796]
[1744820470169,1.26731507,1590.1,1590.0,2.91766]
[1744820472975,0.00942507,1590.1,1590.0,2.91766]
[1744820474767,1.26730507,1590.1,1590.0,2.91766]
[1744820475175,1.26730507,1590.1,1590.0,1.6597]
[1744820475775,2.89700507,1590.1,1590.0,1.6597]
[1744820476476,1.25804,1589.9,1589.8,7.76208]
[1744820476684,1.25804,1589.9,1589.8,8.2831]
[1744820476968,1.25819,1589.7,1589.6,6.08121]
[1744820477176,1.25819,1589.7,1589.6,8.67681]
[1744820478775,1.25835,1589.6,1589.5,1.25833]
[1744820479076,3.2078,1589.8,1589.7,1.25819]
[1744820479481,1.25812,1589.8,1589.7,1.25819]
[1744820479876,1.25812,1589.8,1589.7,2.13349]
[1744820480783,2.88909,1589.9,1589.8,1.25812]
[1744820480981,2.88909,1589.9,1589.8,3.01062]
[1744820481281,7.17120507,1590.1,1589.9,1.25799]
[1744820481282,1.25802,1590.0,1589.9,1.25799]
[1744820481676,1.25804,1589.9,1589.8,0.8399]
[1744820481877,1.25804,1589.9,1589.8,2.09802]
[1744820482080,2.88902,1590.0,1589.9,1.25804]
[1744820483082,1.631,1590.0,1589.9,1.25804]
[1744820483379,0.00942507,1590.1,1590.0,1.25796]
[1744820483572,1.26730507,1590.1,1590.0,1.25796]
[1744820484581,0.00942507,1590.1,1590.0,11.08096]
[1744820484781,0.00942507,1590.1,1590.0,11.96016]
[1744820485886,0.00942507,1590.1,1590.0,6.96016]
[1744820487587,1.26730507,1590.1,1590.0,6.96016]
[1744820487786,1.76732507,1590.1,1590.0,6.96016]
[1744820488788,3.02520507,1590.1,1590.0,6.96016]
[1744820489488,1.76732507,1590.1,1590.0,6.96016]
[1744820490085,3.02520507,1590.1,1590.0,6.96016]
[1744820490286,1.76732507,1590.1,1590.0,6.96016]
[1744820491991,3.02520507,1590.1,1590.0,6.96016]
[1744820493091,5.07e-06,1590.1,1590.0,11.96016]
[1744820494183,5.07e-06,1590.1,1590.0,6.96016]
[1744820495395,1.64160507,1590.1,1590.0,6.96016]
[1744820495895,2.89948507,1590.1,1590.0,6.08096]
[1744820497897,2.89948507,1590.1,1589.8,0.8399]
[1744820497898,1.25804,1589.9,1589.8,0.8399]
[1744820498095,1.25804,1589.9,1589.8,2.09802]
[1744820498393,1.25812,1589.8,1589.7,6.07113]
[1744820498593,3.84892,1589.8,1589.7,6.07113]
[1744820498794,3.14549,1589.7,1589.4,13.84963992]
[1744820498999,1.25835,1589.5,1589.4,12.59124992]
[1744820499299,1.25835,1589.5,1589.4,11.27341485]
[1744820499500,8.86945,1589.5,1589.4,11.27341485]
[1744820500698,8.86945,1589.5,1589.4,1.94411485]
[1744820500903,1.25843,1589.4,1589.3,34.62587585]
[1744820501100,4.46623,1589.4,1589.3,34.62587585]
[1744820501290,4.46623,1589.4,1589.3,31.97162585]
[1744820501291,9.46623,1589.4,1589.3,31.97162585]
[1744820501497,9.46623,1589.4,1589.3,0.00942507]
[1744820502005,9.46623,1589.4,1589.3,5.07e-06]
[1744820503799,1.25899,1588.7,1588.6,16.71223546]
[1744820503995,6.07299,1588.7,1588.6,16.71223546]
[1744820504207,11.07299,1588.7,1588.6,13.77653546]
[1744820504393,12.73659,1588.7,1588.6,9.88689671]
[1744820504601,1.25907,1588.6,1588.5,20.59154645]
[1744820504800,6.13047,1588.6,1588.5,20.59154645]
[1744820505002,11.13047,1588.6,1588.5,20.59154645]
[1744820506306,11.13047,1588.6,1588.4,0.00942507]
[1744820506307,1.25915,1588.5,1588.4,0.00942507]
[1744820506507,2.94915,1588.5,1588.4,0.00942507]
[1744820506706,7.94915,1588.5,1588.4,0.00942507]
[1744820506910,2.94915,1588.5,1588.4,0.00942507]
[1744820507808,7.94915,1588.5,1588.4,5.07e-06]
[1744820509616,2.94915,1588.5,1588.4,5.07e-06]
[1744820510513,1.25966,1587.9,1587.8,1.25966]
[1744820511010,8.0238,1588.2,1587.9,1.25962]
[1744820511311,1.25948,1588.1,1588.0,1.25948]
[1744820511512,1.25943,1588.2,1588.1,7.55381814]
[1744820511810,1.25943,1588.2,1588.1,1.25943]
[1744820512013,1.25943,1588.2,1588.1,6.29438814]
[1744820512313,4.46723,1588.2,1588.1,6.29438814]
[1744820512501,4.46723,1588.2,1588.1,1.6236]
[1744820512910,1.25946,1588.1,1588.0,0.8886]
[1744820513110,1.25962,1587.9,1587.8,1.6236]
[1744820513415,4.46742,1587.9,1587.8,7.91798814]
[1744820515403,1.2597,1587.8,1587.7,0.8655]
[1744820515614,1.25978,1587.7,1587.6,1.7547]
[1744820515812,4.46758,1587.7,1587.6,1.7547]
[1744820517410,1.25994,1587.5,1587.4,0.8442]
[1744820517706,1.25994,1587.5,1587.4,3.85892]
[1744820517909,1.25994,1587.5,1587.4,10.15330814]
[1744820518108,3.21722507,1587.9,1587.5,3.14985]
[1744820518413,1.25973,1587.8,1587.7,1.2998387]
[1744820518608,1.25973,1587.8,1587.7,0.0401087]
[1744820518807,1.25973,1587.8,1587.7,8.45747684]
[1744820519008,3.21722507,1587.9,1587.8,1.2597]
[1744820519208,4.47690507,1587.9,1587.8,8.84278814]
[1744820519417,4.47690507,1587.9,1587.8,10.10248814]
[1744820519707,3.21722507,1587.9,1587.8,10.18269648]
[1744820520014,4.47684507,1587.9,1587.8,10.18269648]
[1744820520217,0.00942507,1587.9,1587.8,10.18269648]
[1744820520516,4.46717,1588.3,1588.2,1.25938]
[1744820520713,4.46717,1588.3,1588.2,1.33958834]
[1744820520914,4.46717,1588.3,1588.2,7.63987146]
[1744820521110,4.46717,1588.3,1588.2,6.38049146]
[1744820521614,4.46717,1588.3,1588.2,8.09019146]
[1744820521817,4.46717,1588.3,1588.2,1.79580332]
[1744820522118,4.46717,1588.3,1588.2,8.09019146]
[1744820522417,4.46717,1588.3,1588.2,1.79580332]
[1744820522716,4.46717,1588.3,1588.2,0.08610332]
[1744820523110,3.14851,1588.2,1587.7,0.00942507]
[1744820523312,3.14851,1588.2,1587.7,6.30381321]
[1744820523313,1.2597,1587.8,1587.7,6.30381321]
[1744820523517,6.0787,1587.8,1587.7,0.00942507]
[1744820523712,12.7898,1587.8,1587.7,5.07e-06]
[1744820523907,12.7898,1587.8,1587.2,1.39531402]
[1744820523908,1.2601,1587.3,1587.2,0.13516402]
[1744820524218,4.4679,1587.3,1587.2,0.13516402]
[1744820524613,1.2601,1587.3,1587.2,6.42955216]
[1744820525314,4.4679,1587.3,1587.2,6.42955216]
[1744820525520,4.4679,1587.3,1587.2,0.13516402]
[1744820526015,9.4679,1587.3,1587.2,0.13516402]
[1744820526216,4.4679,1587.3,1587.2,0.13516402]
[1744820526518,6.2145,1587.3,1587.2,0.13516402]
[1744820526819,6.2145,1587.3,1587.2,0.17511909]
[1744820527421,4.4679,1587.3,1587.2,0.17511909]
[1744820527620,0.00942507,1587.4,1587.3,1.2601]
[1744820527818,0.00942507,1587.4,1587.3,10.04878814]
[1744820528021,4.46764,1587.7,1587.6,1.25986]
[1744820528321,4.46764,1587.7,1587.5,1.25988]
[1744820528523,4.46764,1587.7,1587.6,1.25986]
[1744820528720,3.2078,1587.7,1587.6,1.25986]
[1744820528925,3.2078,1587.7,1587.6,12.64034572]
[1744820529123,1.26918507,1587.8,1587.7,1.25978]
[1744820529312,0.00942507,1587.8,1587.7,9.22956814]
[1744820529519,0.00942507,1587.8,1587.7,14.22956814]
[1744820529722,1.25955,1588.0,1587.9,1.25962]
[1744820529922,1.25955,1588.0,1587.9,1.34571758]
[1744820530123,1.25955,1588.0,1587.9,7.64010572]
[1744820530930,1.25955,1588.0,1587.9,6.38048572]
[1744820531721,1.26894507,1588.1,1588.0,1.25954]
[1744820531925,0.00942507,1588.1,1588.0,9.30972572]
[1744820532311,0.00942507,1588.1,1588.0,14.30972572]
[1744820532920,3.2078,1588.5,1588.3,1.25925]
[1744820533117,4.46698,1588.5,1588.4,1.6697]
[1744820533623,4.46698,1588.5,1588.4,7.96408814]
[1744820533819,7.27737796,1588.7,1588.5,1.25915]
[1744820533820,1.25913,1588.6,1588.5,1.25915]
[1744820534127,1.26855507,1588.6,1588.5,9.33583572]
[1744820534423,0.00942507,1588.6,1588.5,9.33583572]
[1744820534620,0.00942507,1588.6,1588.5,9.37595938]
[1744820535022,1.26849507,1588.6,1588.5,8.11680938]
[1744820535522,1.26849507,1588.6,1588.5,1.82242124]
[1744820535721,2.90719507,1588.6,1588.5,1.82242124]
[1744820535917,2.90719507,1588.6,1588.5,1.8625449]
[1744820536321,2.90719507,1588.6,1588.5,1.86839184]
[1744820536825,2.90719507,1588.6,1588.5,0.17219184]
[1744820537628,7.90719507,1588.6,1588.5,0.17219184]
[1744820538125,1.25922,1588.4,1588.3,0.00942507]
[1744820538426,9.27902,1588.4,1588.3,0.00942507]
[1744820538620,14.27902,1588.4,1588.3,0.00942507]
[1744820539019,9.27902,1588.4,1588.3,0.00942507]
[1744820541530,13.0198,1588.4,1587.9,0.8505]
[1744820541730,13.0198,1588.4,1587.6,0.8587]
[1744820541731,6.35675,1588.0,1587.6,0.8587]
[1744820541926,1.25962,1587.9,1587.8,0.04006658]
[1744820542232,2.92002,1587.9,1587.8,0.04006658]
[1744820542424,2.92002,1587.9,1587.8,6.33445472]
[1744820542930,2.92002,1587.9,1587.8,6.37438653]
[1744820544522,8.91002,1587.9,1587.8,0.07999839]
[1744820544722,1.2597,1587.8,1587.7,0.00942507]
[1744820544922,10.9116,1587.8,1587.7,5.07e-06]
[1744820545124,1.2601,1587.3,1587.2,0.13516402]
[1744820545323,1.2601,1587.3,1587.2,1.85386402]
[1744820546630,1.2601,1587.3,1587.2,8.14825216]
[1744820548428,1.2601,1587.3,1587.2,13.14825216]
[1744820548634,3.21722507,1587.4,1587.2,13.14825216]
[1744820548635,3.21722507,1587.4,1587.2,14.40835216]
[1744820548839,3.21722507,1587.4,1587.3,7.55448814]
[1744820549029,3.21722507,1587.4,1587.3,9.25228814]
[1744820549335,0.00942507,1587.4,1587.3,14.25228814]
[1744820549531,7.33769796,1587.8,1587.4,3.14996]
[1744820549736,1.2598,1587.7,1587.6,1.25983]
[1744820549936,8.59745796,1587.8,1587.6,1.25983]
[1744820550128,8.59745796,1587.8,1587.7,7.55416814]
[1744820550330,8.59745796,1587.8,1587.6,1.25979]
[1744820550538,8.59744796,1587.8,1587.7,1.25978]
[1744820550838,8.60685303,1587.8,1587.7,1.25978]
[1744820551033,5.39905303,1587.8,1587.7,6.29438814]
[1744820551538,7.07495303,1587.8,1587.7,6.29438814]
[1744820551733,1.26002,1587.4,1587.3,5.856]
[1744820552043,1.2601,1587.3,1587.2,1.39531402]
[1744820552226,1.2601,1587.3,1587.2,7.68970216]
[1744820552536,1.2601,1587.3,1587.2,12.68966216]
[1744820552730,1.26008,1587.4,1587.3,1.2601]
[1744820553033,3.14946,1587.7,1587.3,6.29438814]
[1744820553238,1.26002,1587.4,1587.3,2.12574]
[1744820553634,1.26002,1587.4,1587.3,13.42012814]
[1744820553838,1.26002,1587.4,1587.3,7.16008814]
[1744820554443,1.26002,1587.4,1587.3,6.29438814]
[1744820554645,2.92472,1587.4,1587.3,6.29438814]
[1744820555543,1.2601,1587.3,1587.2,0.13516402]
[1744820555734,1.26018,1587.2,1587.1,6.29438814]
[1744820556235,2.91798,1587.2,1587.1,6.29438814]
[1744820556740,1.26018,1587.2,1587.1,6.29438814]
[1744820558040,1.26016,1587.3,1587.1,6.29438814]
[1744820558331,1.26008,1587.4,1587.3,1.26009]
[1744820558539,1.26016,1587.3,1587.2,1.26017]
[1744820558831,1.26002,1587.4,1587.3,6.29438814]
[1744820559035,1.26016,1587.3,1587.2,6.29438814]
[1744820559245,1.26024,1587.2,1587.1,7.55462814]
[1744820559432,1.26016,1587.3,1587.2,1.26018]
[1744820559741,1.26018,1587.2,1587.1,1.2602]
[1744820559944,1.26017,1587.3,1587.2,7.55456814]
[1744820560142,1.26017,1587.3,1587.2,1.26018]
[1744820560345,1.26017,1587.3,1587.2,6.29438814]
[1744820560548,1.26017,1587.3,1587.2,7.55456814]
[1744820561042,1.26017,1587.3,1587.2,6.29438814]
[1744820561239,1.26017,1587.3,1587.0,3.21722507]
[1744820561240,1.26026,1587.1,1587.0,0.00942507]
[1744820561640,1.26026,1587.1,1587.0,6.30381321]
[1744820565648,1.26022,1587.2,1587.1,1.26018]
[1744820565847,1.26014,1587.3,1587.2,1.26014]
[1744820566051,6.29991,1587.5,1587.2,6.29438814]
[1744820566239,1.26002,1587.4,1587.3,6.29438814]
[1744820566442,1.26026,1587.1,1587.0,1.26972507]
[1744820566642,1.26024,1587.2,1587.1,6.29438814]
[1744820568156,1.26026,1587.1,1587.0,0.00942507]
[1744820568348,1.26026,1587.1,1587.0,6.30381321]
[1744820569046,1.26026,1587.1,1587.0,0.00942507]
[1744820569249,3.03216,1587.1,1587.0,0.00942507]
[1744820569447,1.26026,1587.1,1587.0,6.30381321]
[1744820570352,1.26026,1587.1,1587.0,8.00741321]
[1744820571857,1.26026,1587.1,1586.6,10.08735]
[1744820571858,1.26057,1586.7,1586.6,10.08735]
[1744820572057,1.26057,1586.7,1586.6,8.8267]
[1744820572259,1.26057,1586.7,1586.6,11.57273814]
[1744820572653,6.35849,1587.1,1586.7,3.15144]
[1744820572857,1.26041,1587.0,1586.9,1.26039]
[1744820573158,1.26041,1586.9,1586.8,10.76262814]
[1744820573356,1.26041,1586.9,1586.8,4.46824]
[1744820573558,1.26041,1586.9,1586.8,10.76262814]
[1744820573745,1.26041,1586.9,1586.8,9.50218814]
[1744820573950,1.26041,1586.9,1586.8,6.29438814]
[1744820574556,1.26041,1586.9,1586.8,7.97698814]
[1744820575555,6.19891,1586.9,1586.8,7.97698814]
[1744820575760,1.26049,1586.8,1586.7,5.856]
[1744820575954,1.26065,1586.6,1586.5,1.6826]
[1744820576155,1.26065,1586.6,1586.5,7.97698814]
[1744820577259,3.15164,1586.6,1586.0,4.81]
[1744820577556,1.26105,1586.1,1586.0,1.26113]
[1744820577861,1.27042506,1586.2,1586.1,6.29438814]
[1744820578051,1.26105,1586.1,1586.0,6.29438814]
[1744820578760,1.26105,1586.1,1586.0,7.94348814]
[1744820579966,2.96765,1586.1,1586.0,7.94348814]
[1744820580163,1.26121,1585.9,1585.8,1.7296]
[1744820580359,1.26119,1586.0,1585.9,6.29438814]
[1744820580664,1.2611,1586.1,1586.0,1.26113]
[1744820580963,1.2611,1586.1,1586.0,7.55551814]
[1744820581154,1.2611,1586.1,1586.0,6.29438814]
[1744820581359,3.15306,1585.9,1585.5,3.2078]
[1744820581653,1.26153,1585.5,1585.4,1.79138541]
[1744820582870,8.0188,1585.6,1585.4,3.05294541]
[1744820582871,1.2615,1585.6,1585.4,3.05294541]
[1744820583051,1.26143,1585.7,1585.5,6.16463]
[1744820583255,1.26137,1585.7,1585.5,4.59943]
[1744820583456,1.26145,1585.6,1585.5,3.3379]
[1744820583856,1.26145,1585.6,1585.5,8.3379]
[1744820584062,1.26145,1585.6,1585.5,8.1499]
[1744820584253,1.26145,1585.6,1585.5,3.3379]
[1744820584862,1.26145,1585.6,1585.5,4.59943]
[1744820585163,3.2078,1585.8,1585.5,4.59943]
[1744820585365,1.26145,1585.6,1585.5,3.3379]
[1744820586980,1.26179,1585.2,1585.0,1.26193]
[1744820587269,1.26185,1585.1,1585.0,1.6782]
[1744820587866,1.26193,1585.0,1584.9,1.79138541]
[1744820588163,4.95889151,1585.0,1584.9,1.79138541]
[1744820588559,1.26201,1584.9,1584.8,12.55411886]
[1744820588762,1.26208,1584.8,1584.7,10.20531544]
[1744820588961,1.26208,1584.8,1584.6,20.63771133]
[1744820588962,1.26216,1584.7,1584.6,20.63771133]
[1744820589165,3.15444,1585.2,1584.7,6.3096]
[1744820589364,1.26208,1584.8,1584.7,6.3096]
[1744820589558,1.26201,1584.9,1584.8,6.3096]
[1744820589764,1.26216,1584.7,1584.6,26.94731133]
[1744820589975,1.26216,1584.7,1584.6,20.63771133]
[1744820590272,1.26213,1584.8,1584.6,10.77962]
[1744820590469,1.26208,1584.8,1584.7,6.3096]
[1744820590671,1.2624,1584.4,1584.2,1.26253]
[1744820590972,0.00945506,1584.5,1584.3,6.3096]
[1744820591363,1.27179506,1584.5,1584.4,6.3096]
[1744820591564,1.2624,1584.4,1584.3,3.2078]
[1744820591867,0.00945506,1584.5,1584.4,6.3096]
[1744820592071,1.27177506,1584.5,1584.4,6.3096]
[1744820593868,1.26256,1584.2,1584.1,12.51846416]
[1744820594067,1.26256,1584.2,1584.1,18.82806416]
[1744820594460,1.26256,1584.2,1584.1,12.51846416]
[1744820594662,1.26256,1584.2,1584.1,18.82806416]
[1744820595063,1.26256,1584.2,1584.1,12.51846416]
[1744820595265,11.07356,1584.2,1584.1,11.13766416]
[1744820595673,14.72763,1584.2,1583.7,0.8457]
[1744820595969,4.4706,1583.9,1583.8,6.3096]
[1744820596169,1.26296,1583.7,1583.6,3.2078]
[1744820596373,1.26309,1583.6,1583.4,1.26313]
[1744820596664,0.00945506,1583.7,1583.4,6.3096]
[1744820596872,0.00945506,1583.7,1583.6,3.2078]
[1744820597073,0.00945506,1583.7,1583.6,4.47084]
[1744820597265,1.26263,1584.2,1584.0,1.26271]
[1744820597466,3.2078,1584.5,1584.0,3.2078]
[1744820597768,1.26256,1584.2,1584.1,7.9941]
[1744820597973,1.26254,1584.3,1584.2,6.3096]
[1744820598164,1.26246,1584.4,1584.2,6.3096]
[1744820598364,0.00945506,1584.4,1584.3,10.77986]
[1744820598668,0.00945506,1584.4,1584.3,15.77986]
[1744820598872,0.00945506,1584.4,1584.3,56.57986]
[1744820599270,1.27185506,1584.4,1584.3,55.3174]
[1744820599965,1.27185506,1584.4,1584.3,6.3096]
[1744820600364,1.27185506,1584.4,1584.3,7.9833]
[1744820601276,9.47965506,1584.4,1584.3,7.9833]
[1744820601474,1.26256,1584.2,1584.1,0.00945506]
[1744820601679,4.47036,1584.2,1584.1,0.00945506]
[1744820601981,9.47036,1584.2,1584.1,0.00945506]
[1744820602172,11.18626,1584.2,1584.1,0.00945506]
[1744820602372,4.47036,1584.2,1584.1,6.31905506]
[1744820602874,0.8157,1584.3,1584.1,6.31905506]
[1744820602875,1.26253,1584.3,1584.1,6.31905506]
[1744820603066,1.26248,1584.3,1584.2,8.7845]
[1744820603376,1.27192506,1584.4,1584.2,10.04706]
[1744820603579,1.27190506,1584.4,1584.3,6.3096]
[1744820603875,1.26256,1584.2,1584.1,2e-08]